[Event "*** SCC Grand Prix: Titled Tuesday Blitz"]
[Site "Chess.com"]
[Date "2020.07.14"]
[Round "2"]
[White "Fandorine"]
[Black "Borsuk_Konstantin"]
[Result "1-0"]
[WhiteElo "2955"]
[BlackElo "2561"]
[TimeControl "180+1"]
[EndTime "10:18:59 PDT"]
[Termination "Fandorine won on time"]

1. e4 {[%clk 0:03:00.9]} 1... e6 {[%clk 0:02:58.6]} 2. d4 {[%clk 0:03:00.5]}
2... d5 {[%clk 0:02:59.2]} 3. Nc3 {[%clk 0:02:55.6]} 3... Bb4 {[%clk 0:02:58.6]}
4. e5 {[%clk 0:02:54.7]} 4... b6 {[%clk 0:02:57.7]} 5. a3 {[%clk 0:02:54.4]}
5... Bf8 {[%clk 0:02:57.2]} 6. f4 {[%clk 0:02:50.7]} 6... Ba6 {[%clk 0:02:55.7]}
7. Bxa6 {[%clk 0:02:50.4]} 7... Nxa6 {[%clk 0:02:55]} 8. Nf3 {[%clk 0:02:51.3]}
8... Ne7 {[%clk 0:02:53.9]} 9. O-O {[%clk 0:02:51.2]} 9... Nb8 {[%clk
0:02:52.6]} 10. Ne2 {[%clk 0:02:50.2]} 10... c5 {[%clk 0:02:51.5]} 11. c3 {[%clk
0:02:45.1]} 11... Nbc6 {[%clk 0:02:50.5]} 12. g4 {[%clk 0:02:45]} 12... h5
{[%clk 0:02:49.7]} 13. h3 {[%clk 0:02:45.2]} 13... Qd7 {[%clk 0:02:44.1]} 14.
Kg2 {[%clk 0:02:40.3]} 14... c4 {[%clk 0:02:33.9]} 15. Ng3 {[%clk 0:02:39.3]}
15... hxg4 {[%clk 0:02:26.1]} 16. hxg4 {[%clk 0:02:40.2]} 16... f5 {[%clk
0:02:21]} 17. Rh1 {[%clk 0:02:04.6]} 17... Rxh1 {[%clk 0:02:11.7]} 18. Qxh1
{[%clk 0:02:04.4]} 18... fxg4 {[%clk 0:01:54.1]} 19. Qh5+ {[%clk 0:02:03.7]}
19... g6 {[%clk 0:01:53.1]} 20. Qxg4 {[%clk 0:02:04.2]} 20... O-O-O {[%clk
0:01:51.2]} 21. Be3 {[%clk 0:02:00.5]} 21... Nf5 {[%clk 0:01:15.5]} 22. Bf2
{[%clk 0:02:00.5]} 22... Nce7 {[%clk 0:01:11.6]} 23. Ng5 {[%clk 0:01:31.6]}
23... Nxg3 {[%clk 0:01:04.7]} 24. Bxg3 {[%clk 0:01:31.8]} 24... Nf5 {[%clk
0:01:04.4]} 25. Bf2 {[%clk 0:01:31.1]} 25... Bh6 {[%clk 0:00:57.5]} 26. Rh1
{[%clk 0:01:30.9]} 26... Bxg5 {[%clk 0:00:53.1]} 27. Qxg5 {[%clk 0:01:31.8]}
27... Qf7 {[%clk 0:00:50.5]} 28. Qf6 {[%clk 0:01:29.9]} 28... Qxf6 {[%clk
0:00:44.6]} 29. exf6 {[%clk 0:01:30.8]} 29... Rf8 {[%clk 0:00:44.7]} 30. Rh7
{[%clk 0:01:31]} 30... Kb8 {[%clk 0:00:39.6]} 31. f7 {[%clk 0:00:47.2]} 31...
Kc7 {[%clk 0:00:37.4]} 32. Kf3 {[%clk 0:00:35.1]} 32... Kd7 {[%clk 0:00:37.1]}
33. Kg4 {[%clk 0:00:32.2]} 33... Nd6 {[%clk 0:00:33.8]} 34. Rg7 {[%clk
0:00:15.5]} 34... Rxf7 {[%clk 0:00:28.4]} 35. Rxg6 {[%clk 0:00:15.7]} 35... Nf5
{[%clk 0:00:20.5]} 36. Kf3 {[%clk 0:00:10.9]} 36... Rh7 {[%clk 0:00:19.8]} 37.
Kg2 {[%clk 0:00:10.5]} 37... Rg7 {[%clk 0:00:17.2]} 38. Rg5 {[%clk 0:00:09.9]}
38... Kc6 {[%clk 0:00:15.3]} 39. Kf3 {[%clk 0:00:09.2]} 39... Rh7 {[%clk
0:00:15.1]} 40. Kg2 {[%clk 0:00:09.5]} 40... Kb5 {[%clk 0:00:13.1]} 41. Rg6
{[%clk 0:00:04.4]} 41... Re7 {[%clk 0:00:13]} 42. Kf3 {[%clk 0:00:04.7]} 42...
Ka4 {[%clk 0:00:13.4]} 43. Kg4 {[%clk 0:00:05.3]} 43... Kb3 {[%clk 0:00:13.6]}
44. Kg5 {[%clk 0:00:05.6]} 44... Kxb2 {[%clk 0:00:13.5]} 45. Kf6 {[%clk
0:00:06.2]} 45... Re8 {[%clk 0:00:07.3]} 46. Kf7 {[%clk 0:00:05.8]} 46... Nd6+
{[%clk 0:00:07.9]} 47. Kf6 {[%clk 0:00:06.3]} 47... Kxc3 {[%clk 0:00:06.8]} 48.
Ke5 {[%clk 0:00:04.4]} 48... Ne4 {[%clk 0:00:05.7]} 49. Be1+ {[%clk 0:00:04.3]}
49... Kd3 {[%clk 0:00:05.5]} 50. Rxe6 {[%clk 0:00:04.3]} 50... Rh8 {[%clk
0:00:05.6]} 51. f5 {[%clk 0:00:04.3]} 51... Ke2 {[%clk 0:00:05.8]} 52. Bb4
{[%clk 0:00:04.1]} 52... a5 {[%clk 0:00:06]} 53. Be7 {[%clk 0:00:04.2]} 53... c3
{[%clk 0:00:05.9]} 54. Kxd5 {[%clk 0:00:05.1]} 54... Kd3 {[%clk 0:00:02.1]} 55.
Rxe4 {[%clk 0:00:04.7]} 55... c2 {[%clk 0:00:02.5]} 56. Bg5 {[%clk 0:00:05.2]}
56... Rg8 {[%clk 0:00:01.3]} 57. Re3+ {[%clk 0:00:04.2]} 1-0

[Event "*** SCC Grand Prix: Titled Tuesday Blitz"]
[Site "Chess.com"]
[Date "2020.07.14"]
[Round "2"]
[White "MisiekZielony"]
[Black "JSMastropiero"]
[Result "1-0"]
[WhiteElo "2213"]
[BlackElo "2411"]
[TimeControl "180+1"]
[EndTime "10:19:00 PDT"]
[Termination "MisiekZielony won by checkmate"]

1. c4 {[%clk 0:03:00.9]} 1... Nf6 {[%clk 0:02:57.3]} 2. Nc3 {[%clk 0:03:00.6]}
2... e5 {[%clk 0:02:55.6]} 3. Nf3 {[%clk 0:03:00.4]} 3... Nc6 {[%clk 0:02:54.9]}
4. e3 {[%clk 0:03:00]} 4... Be7 {[%clk 0:02:40.9]} 5. d4 {[%clk 0:02:59]} 5...
exd4 {[%clk 0:02:39.7]} 6. Nxd4 {[%clk 0:02:59.2]} 6... O-O {[%clk 0:02:37.4]}
7. Be2 {[%clk 0:02:58.8]} 7... Ne5 {[%clk 0:02:20.6]} 8. Nf5 {[%clk 0:02:56.2]}
8... Bb4 {[%clk 0:02:18.1]} 9. Qc2 {[%clk 0:02:24.6]} 9... d6 {[%clk 0:02:16.3]}
10. Bd2 {[%clk 0:02:18.4]} 10... Re8 {[%clk 0:02:07.8]} 11. O-O {[%clk 0:02:16]}
11... Be6 {[%clk 0:02:06.3]} 12. b3 {[%clk 0:01:40]} 12... Qd7 {[%clk
0:02:04.7]} 13. Nd4 {[%clk 0:01:39.3]} 13... Bg4 {[%clk 0:02:01]} 14. Bxg4
{[%clk 0:01:28.9]} 14... Qxg4 {[%clk 0:01:51.8]} 15. Qf5 {[%clk 0:01:07.7]}
15... Qxf5 {[%clk 0:01:31.5]} 16. Nxf5 {[%clk 0:01:07.4]} 16... g6 {[%clk
0:01:23.6]} 17. Nd4 {[%clk 0:01:04.6]} 17... c6 {[%clk 0:01:22.5]} 18. Rfd1
{[%clk 0:01:00.2]} 18... Rad8 {[%clk 0:01:19.9]} 19. Nc2 {[%clk 0:00:49.7]}
19... Ba5 {[%clk 0:01:17.2]} 20. Nd5 {[%clk 0:00:46.5]} 20... Nxd5 {[%clk
0:01:06.3]} 21. Bxa5 {[%clk 0:00:46.3]} 21... Nb6 {[%clk 0:01:06.7]} 22. Rd2
{[%clk 0:00:37.1]} 22... Kf8 {[%clk 0:00:59.9]} 23. Rad1 {[%clk 0:00:36.9]}
23... Ke7 {[%clk 0:01:00]} 24. Nd4 {[%clk 0:00:34.4]} 24... f5 {[%clk
0:00:57.8]} 25. Ne2 {[%clk 0:00:33.6]} 25... Nf7 {[%clk 0:00:56]} 26. Nf4 {[%clk
0:00:32.5]} 26... Rc8 {[%clk 0:00:50.5]} 27. Bb4 {[%clk 0:00:28.4]} 27... Red8
{[%clk 0:00:32.9]} 28. h4 {[%clk 0:00:28.2]} 28... Rd7 {[%clk 0:00:20.5]} 29. f3
{[%clk 0:00:27.8]} 29... Rcd8 {[%clk 0:00:20.6]} 30. Ba5 {[%clk 0:00:27.5]}
30... Re8 {[%clk 0:00:16.6]} 31. Kf2 {[%clk 0:00:27]} 31... Ne5 {[%clk
0:00:15.9]} 32. g3 {[%clk 0:00:26.8]} 32... Rg8 {[%clk 0:00:13.5]} 33. Bc3
{[%clk 0:00:26.1]} 33... Nf7 {[%clk 0:00:13.1]} 34. Nh3 {[%clk 0:00:25.3]} 34...
h6 {[%clk 0:00:12.8]} 35. Nf4 {[%clk 0:00:25.2]} 35... g5 {[%clk 0:00:12.3]} 36.
hxg5 {[%clk 0:00:25.5]} 36... hxg5 {[%clk 0:00:12.6]} 37. Nh5 {[%clk 0:00:25.8]}
37... Rg6 {[%clk 0:00:12.6]} 38. g4 {[%clk 0:00:20.8]} 38... fxg4 {[%clk
0:00:12]} 39. fxg4 {[%clk 0:00:21]} 39... Nc8 {[%clk 0:00:11.1]} 40. Kg3 {[%clk
0:00:21.2]} 40... Ne5 {[%clk 0:00:11.2]} 41. Bxe5 {[%clk 0:00:20.9]} 41... Rd8
{[%clk 0:00:10.7]} 42. Bc3 {[%clk 0:00:20.3]} 42... Rf8 {[%clk 0:00:10.9]} 43.
Rf2 {[%clk 0:00:20.7]} 43... Re6 {[%clk 0:00:08.2]} 44. Rxf8 {[%clk 0:00:20.3]}
44... Kxf8 {[%clk 0:00:09.1]} 45. Rf1+ {[%clk 0:00:19.6]} 45... Ke7 {[%clk
0:00:09.4]} 46. Rf3 {[%clk 0:00:19.9]} 46... d5 {[%clk 0:00:08.8]} 47. Bf6+
{[%clk 0:00:20.4]} 47... Kd7 {[%clk 0:00:08.6]} 48. cxd5 {[%clk 0:00:21]} 48...
cxd5 {[%clk 0:00:09.1]} 49. Bxg5 {[%clk 0:00:21.6]} 49... Nd6 {[%clk 0:00:09.1]}
50. Bf4 {[%clk 0:00:21.2]} 50... Ne4+ {[%clk 0:00:09.2]} 51. Kg2 {[%clk
0:00:21.6]} 51... Rc6 {[%clk 0:00:09.4]} 52. Rf1 {[%clk 0:00:15.6]} 52... Rc2+
{[%clk 0:00:09.1]} 53. Kh3 {[%clk 0:00:16.1]} 53... Rxa2 {[%clk 0:00:08.7]} 54.
Ng3 {[%clk 0:00:15.4]} 54... Nf2+ {[%clk 0:00:08.2]} 55. Kh4 {[%clk 0:00:15.8]}
55... Nd3 {[%clk 0:00:07.7]} 56. Nf5 {[%clk 0:00:15.7]} 56... Rb2 {[%clk
0:00:04.1]} 57. Nd4 {[%clk 0:00:15.8]} 57... a5 {[%clk 0:00:04.2]} 58. Kg5
{[%clk 0:00:16.1]} 58... b6 {[%clk 0:00:03.4]} 59. Kf5 {[%clk 0:00:16.3]} 59...
Nc5 {[%clk 0:00:03.9]} 60. Rh1 {[%clk 0:00:16.1]} 60... Nxb3 {[%clk 0:00:04.3]}
61. Rh7+ {[%clk 0:00:15.4]} 61... Kc8 {[%clk 0:00:04.1]} 62. Nc6 {[%clk
0:00:15.6]} 62... Nc5 {[%clk 0:00:03.6]} 63. Rc7# {[%clk 0:00:15.3]} 1-0

[Event "*** SCC Grand Prix: Titled Tuesday Blitz"]
[Site "Chess.com"]
[Date "2020.07.14"]
[Round "2"]
[White "tamarozi99"]
[Black "kobemagic"]
[Result "1/2-1/2"]
[WhiteElo "2007"]
[BlackElo "2347"]
[TimeControl "180+1"]
[EndTime "10:19:00 PDT"]
[Termination "Game drawn - insufficient material"]

1. e4 {[%clk 0:03:00.9]} 1... Nf6 {[%clk 0:02:59.7]} 2. e5 {[%clk 0:02:59.4]}
2... Nd5 {[%clk 0:02:59.5]} 3. d4 {[%clk 0:02:59.6]} 3... d6 {[%clk 0:02:58.7]}
4. c4 {[%clk 0:02:59.6]} 4... Nb6 {[%clk 0:02:57.9]} 5. exd6 {[%clk 0:03:00.1]}
5... exd6 {[%clk 0:02:57.4]} 6. Nc3 {[%clk 0:03:00.3]} 6... Nc6 {[%clk
0:02:56.8]} 7. Be3 {[%clk 0:02:55.5]} 7... Be7 {[%clk 0:02:52.8]} 8. b3 {[%clk
0:02:53.6]} 8... O-O {[%clk 0:02:50.9]} 9. Be2 {[%clk 0:02:53.5]} 9... Bg5
{[%clk 0:02:50.9]} 10. f4 {[%clk 0:02:38.4]} 10... Re8 {[%clk 0:02:48.8]} 11.
Qd2 {[%clk 0:02:34]} 11... Bf6 {[%clk 0:02:44.9]} 12. Nf3 {[%clk 0:02:33.9]}
12... Bg4 {[%clk 0:02:44.3]} 13. O-O {[%clk 0:02:04.9]} 13... Bxf3 {[%clk
0:02:39.7]} 14. Bxf3 {[%clk 0:01:54.8]} 14... Rxe3 {[%clk 0:02:39.3]} 15. Bxc6
{[%clk 0:01:54.5]} 15... Rxc3 {[%clk 0:02:34.6]} 16. Bxb7 {[%clk 0:01:39.1]}
16... c5 {[%clk 0:02:33.9]} 17. Bxa8 {[%clk 0:01:36]} 17... Bxd4+ {[%clk
0:02:30.7]} 18. Kh1 {[%clk 0:01:34.7]} 18... Nxa8 {[%clk 0:02:25.6]} 19. Rac1
{[%clk 0:01:25.6]} 19... Rxc1 {[%clk 0:02:24.3]} 20. Qxc1 {[%clk 0:01:26.5]}
20... Nc7 {[%clk 0:02:23.6]} 21. Qa3 {[%clk 0:01:21.5]} 21... a6 {[%clk
0:02:18.4]} 22. Qa5 {[%clk 0:01:16.6]} 22... g6 {[%clk 0:02:07.7]} 23. Qb6
{[%clk 0:01:12.1]} 23... Kg7 {[%clk 0:01:33.8]} 24. h3 {[%clk 0:01:00]} 24...
Qe7 {[%clk 0:01:25.1]} 25. Qb7 {[%clk 0:00:53.5]} 25... Qd8 {[%clk 0:01:19.7]}
26. Qc6 {[%clk 0:00:49.1]} 26... Ne8 {[%clk 0:01:11.9]} 27. Qxa6 {[%clk
0:00:46.8]} 27... Nf6 {[%clk 0:01:11.8]} 28. Qc6 {[%clk 0:00:44.6]} 28... Nh5
{[%clk 0:01:11.5]} 29. Qf3 {[%clk 0:00:33.5]} 29... Qh4 {[%clk 0:01:11.1]} 30.
Kh2 {[%clk 0:00:32.3]} 30... Nxf4 {[%clk 0:00:56.5]} 31. Qg3 {[%clk 0:00:20.7]}
31... Qxg3+ {[%clk 0:00:51.3]} 32. Kxg3 {[%clk 0:00:20.8]} 32... Ne6 {[%clk
0:00:48.3]} 33. a3 {[%clk 0:00:19]} 33... Bb2 {[%clk 0:00:45]} 34. a4 {[%clk
0:00:18.2]} 34... Bc3 {[%clk 0:00:43.8]} 35. Rc1 {[%clk 0:00:17.9]} 35... Ba5
{[%clk 0:00:43.5]} 36. Rd1 {[%clk 0:00:15.6]} 36... Nd4 {[%clk 0:00:43.8]} 37.
Rd3 {[%clk 0:00:15.7]} 37... f5 {[%clk 0:00:42.4]} 38. Kf4 {[%clk 0:00:15.8]}
38... Kf6 {[%clk 0:00:42.8]} 39. g4 {[%clk 0:00:15.9]} 39... g5+ {[%clk
0:00:42.6]} 40. Kg3 {[%clk 0:00:15.9]} 40... f4+ {[%clk 0:00:42.7]} 41. Kf2
{[%clk 0:00:16.2]} 41... Ke5 {[%clk 0:00:42.3]} 42. h4 {[%clk 0:00:13.8]} 42...
h6 {[%clk 0:00:41.7]} 43. hxg5 {[%clk 0:00:13.5]} 43... hxg5 {[%clk 0:00:42.6]}
44. Kg2 {[%clk 0:00:13.6]} 44... Ke4 {[%clk 0:00:42.2]} 45. Rh3 {[%clk 0:00:12]}
45... Nxb3 {[%clk 0:00:39.1]} 46. Rxb3 {[%clk 0:00:11.1]} 46... Kd4 {[%clk
0:00:31.1]} 47. Rb5 {[%clk 0:00:11.1]} 47... Bc7 {[%clk 0:00:26.5]} 48. Rb7
{[%clk 0:00:10.9]} 48... Ba5 {[%clk 0:00:25.8]} 49. Ra7 {[%clk 0:00:10.7]} 49...
Bd2 {[%clk 0:00:24]} 50. Rd7 {[%clk 0:00:09.1]} 50... Kxc4 {[%clk 0:00:22.3]}
51. Rxd6 {[%clk 0:00:09.3]} 51... Be3 {[%clk 0:00:22.2]} 52. a5 {[%clk
0:00:08.9]} 52... Kb5 {[%clk 0:00:22.2]} 53. a6 {[%clk 0:00:09.1]} 53... c4
{[%clk 0:00:22.8]} 54. Rg6 {[%clk 0:00:07.6]} 54... c3 {[%clk 0:00:20.1]} 55.
Rxg5+ {[%clk 0:00:07.8]} 55... Kxa6 {[%clk 0:00:20.6]} 56. Rh5 {[%clk
0:00:07.5]} 56... c2 {[%clk 0:00:17.5]} 57. Rh1 {[%clk 0:00:07.3]} 57... c1=Q
{[%clk 0:00:16.2]} 58. Rxc1 {[%clk 0:00:07.2]} 58... Bxc1 {[%clk 0:00:16.6]} 59.
g5 {[%clk 0:00:07.4]} 59... Kb5 {[%clk 0:00:15.1]} 60. g6 {[%clk 0:00:07.5]}
60... Bb2 {[%clk 0:00:15.1]} 61. Kf3 {[%clk 0:00:07.8]} 61... Kc4 {[%clk
0:00:14.5]} 62. g7 {[%clk 0:00:07.9]} 62... Bxg7 {[%clk 0:00:13.2]} 63. Kxf4
{[%clk 0:00:08.2]} 1/2-1/2

[Event "*** SCC Grand Prix: Titled Tuesday Blitz"]
[Site "Chess.com"]
[Date "2020.07.14"]
[Round "2"]
[White "TST2014"]
[Black "MITerryble"]
[Result "0-1"]
[WhiteElo "2508"]
[BlackElo "2808"]
[TimeControl "180+1"]
[EndTime "10:19:01 PDT"]
[Termination "MITerryble won on time"]

1. d4 {[%clk 0:03:00.9]} 1... e6 {[%clk 0:03:00.1]} 2. c4 {[%clk 0:03:00.1]}
2... Bb4+ {[%clk 0:02:59.4]} 3. Bd2 {[%clk 0:02:59.2]} 3... Qe7 {[%clk
0:02:59.2]} 4. a3 {[%clk 0:02:59.2]} 4... Bxd2+ {[%clk 0:02:58.4]} 5. Qxd2
{[%clk 0:03:00.1]} 5... Nf6 {[%clk 0:02:58.7]} 6. Nc3 {[%clk 0:02:59.7]} 6... d6
{[%clk 0:02:59.1]} 7. e4 {[%clk 0:02:59]} 7... e5 {[%clk 0:02:59.5]} 8. d5
{[%clk 0:02:56.3]} 8... a5 {[%clk 0:02:59.5]} 9. b3 {[%clk 0:02:51.2]} 9... Na6
{[%clk 0:02:58.8]} 10. Rb1 {[%clk 0:02:50]} 10... O-O {[%clk 0:02:47.9]} 11. Bd3
{[%clk 0:02:41.1]} 11... c6 {[%clk 0:02:41]} 12. Nge2 {[%clk 0:02:38.4]} 12...
Bd7 {[%clk 0:02:37.4]} 13. f3 {[%clk 0:02:31]} 13... cxd5 {[%clk 0:02:22.4]} 14.
exd5 {[%clk 0:02:17]} 14... Nc5 {[%clk 0:02:15.7]} 15. O-O {[%clk 0:01:40.8]}
15... Rfe8 {[%clk 0:02:05.9]} 16. Ng3 {[%clk 0:01:33.9]} 16... h5 {[%clk
0:01:55.6]} 17. Bc2 {[%clk 0:01:29.9]} 17... h4 {[%clk 0:01:55.8]} 18. Nf5
{[%clk 0:01:28.1]} 18... Bxf5 {[%clk 0:01:55.9]} 19. Bxf5 {[%clk 0:01:29]} 19...
g6 {[%clk 0:01:56.6]} 20. Bh3 {[%clk 0:01:27.8]} 20... Nh5 {[%clk 0:01:56.9]}
21. b4 {[%clk 0:01:23.4]} 21... axb4 {[%clk 0:01:57]} 22. axb4 {[%clk
0:01:24.3]} 22... Na6 {[%clk 0:01:57.9]} 23. Bg4 {[%clk 0:01:07.7]} 23... Ng7
{[%clk 0:01:42.7]} 24. Qh6 {[%clk 0:01:00.3]} 24... f5 {[%clk 0:01:40.1]} 25.
Qxg6 {[%clk 0:01:00.1]} 25... Rf8 {[%clk 0:01:18.7]} 26. Bh3 {[%clk 0:00:54.4]}
26... Rac8 {[%clk 0:01:17.8]} 27. Nb5 {[%clk 0:00:46.8]} 27... Rf6 {[%clk
0:01:15.6]} 28. Qg5 {[%clk 0:00:43.9]} 28... Rxc4 {[%clk 0:01:15.9]} 29. Bxf5
{[%clk 0:00:37.8]} 29... Rf4 {[%clk 0:01:00.4]} 30. Bg6 {[%clk 0:00:35]} 30...
Qd8 {[%clk 0:00:51.1]} 31. Qh6 {[%clk 0:00:32]} 31... Rxg6 {[%clk 0:00:49.6]}
32. Qxg6 {[%clk 0:00:31.6]} 32... Qb6+ {[%clk 0:00:47.7]} 33. Kh1 {[%clk
0:00:30.2]} 33... Qxb5 {[%clk 0:00:48.1]} 34. Rfc1 {[%clk 0:00:28.4]} 34... Rf8
{[%clk 0:00:46.6]} 35. Qg4 {[%clk 0:00:22.3]} 35... Qxd5 {[%clk 0:00:41.4]} 36.
Qxh4 {[%clk 0:00:22.1]} 36... Qe6 {[%clk 0:00:37.6]} 37. Rc4 {[%clk 0:00:20.6]}
37... Qf6 {[%clk 0:00:18]} 38. Qh3 {[%clk 0:00:17.5]} 38... Qf5 {[%clk
0:00:18.1]} 39. Qxf5 {[%clk 0:00:16.1]} 39... Nxf5 {[%clk 0:00:18.1]} 40. Rd1
{[%clk 0:00:16.3]} 40... Ne3 {[%clk 0:00:17.9]} 41. Rdc1 {[%clk 0:00:14.4]}
41... Nxc4 {[%clk 0:00:18]} 42. Rxc4 {[%clk 0:00:15.1]} 42... Kf7 {[%clk
0:00:16.5]} 43. g3 {[%clk 0:00:13.7]} 43... d5 {[%clk 0:00:16.8]} 44. Rg4 {[%clk
0:00:12.6]} 44... Ke6 {[%clk 0:00:17]} 45. Kg2 {[%clk 0:00:11.8]} 45... d4
{[%clk 0:00:17.4]} 46. Rg6+ {[%clk 0:00:11.6]} 46... Kd5 {[%clk 0:00:17.3]} 47.
Rb6 {[%clk 0:00:11.2]} 47... d3 {[%clk 0:00:17.6]} 48. Kf2 {[%clk 0:00:11.6]}
48... Kc4 {[%clk 0:00:16.9]} 49. Rxb7 {[%clk 0:00:10.4]} 49... Rd8 {[%clk
0:00:16.6]} 50. Ke1 {[%clk 0:00:09.4]} 50... Nxb4 {[%clk 0:00:15.7]} 51. Kd2
{[%clk 0:00:08.6]} 51... Nc6 {[%clk 0:00:13]} 52. Rc7 {[%clk 0:00:08.3]} 52...
Kb5 {[%clk 0:00:13]} 53. Rb7+ {[%clk 0:00:08.3]} 53... Kc5 {[%clk 0:00:12.5]}
54. Rc7 {[%clk 0:00:08.3]} 54... Kb6 {[%clk 0:00:12.1]} 55. Rf7 {[%clk
0:00:07.8]} 55... Na5 {[%clk 0:00:12.4]} 56. Rf6+ {[%clk 0:00:07.2]} 56... Kc5
{[%clk 0:00:12.2]} 57. Rf5 {[%clk 0:00:05.4]} 57... Nc4+ {[%clk 0:00:12.5]} 58.
Kd1 {[%clk 0:00:05.8]} 58... Ne3+ {[%clk 0:00:12.7]} 0-1

[Event "*** SCC Grand Prix: Titled Tuesday Blitz"]
[Site "Chess.com"]
[Date "2020.07.14"]
[Round "2"]
[White "ChessBitl"]
[Black "AlexSuv"]
[Result "1/2-1/2"]
[WhiteElo "2315"]
[BlackElo "2571"]
[TimeControl "180+1"]
[EndTime "10:19:02 PDT"]
[Termination "Game drawn by agreement"]

1. e4 {[%clk 0:03:00.5]} 1... c5 {[%clk 0:03:00.1]} 2. Nf3 {[%clk 0:02:59.3]}
2... e6 {[%clk 0:02:59.9]} 3. c4 {[%clk 0:02:58.4]} 3... Nc6 {[%clk 0:02:58.7]}
4. Nc3 {[%clk 0:02:58.5]} 4... Nf6 {[%clk 0:02:56]} 5. Be2 {[%clk 0:02:58.5]}
5... Bd6 {[%clk 0:02:50.3]} 6. O-O {[%clk 0:02:57.3]} 6... O-O {[%clk
0:02:49.8]} 7. d4 {[%clk 0:02:56.7]} 7... cxd4 {[%clk 0:02:40.4]} 8. Nxd4 {[%clk
0:02:56.5]} 8... Bb4 {[%clk 0:02:38.4]} 9. Nxc6 {[%clk 0:02:36.5]} 9... dxc6
{[%clk 0:02:30.1]} 10. Qc2 {[%clk 0:02:34.3]} 10... e5 {[%clk 0:02:28.6]} 11.
Bg5 {[%clk 0:02:31.6]} 11... h6 {[%clk 0:02:28.5]} 12. Bh4 {[%clk 0:02:29.6]}
12... Be7 {[%clk 0:02:17.7]} 13. Rad1 {[%clk 0:02:27.9]} 13... Qc7 {[%clk
0:02:17.9]} 14. Bg3 {[%clk 0:02:27.5]} 14... Be6 {[%clk 0:02:15]} 15. f3 {[%clk
0:02:15.1]} 15... Rfd8 {[%clk 0:02:13.7]} 16. Bf2 {[%clk 0:02:12.5]} 16... Nd7
{[%clk 0:02:12.9]} 17. a3 {[%clk 0:02:05.7]} 17... a5 {[%clk 0:02:12.7]} 18. Na4
{[%clk 0:02:02.8]} 18... Rab8 {[%clk 0:01:56.2]} 19. Rd2 {[%clk 0:01:58.8]}
19... Nf8 {[%clk 0:01:23.6]} 20. Rxd8 {[%clk 0:01:50.5]} 20... Bxd8 {[%clk
0:01:19.5]} 21. Rd1 {[%clk 0:01:48.1]} 21... Qe7 {[%clk 0:01:13.8]} 22. Qc3
{[%clk 0:01:35.2]} 22... Qf6 {[%clk 0:01:00.5]} 23. Nc5 {[%clk 0:01:28.7]} 23...
h5 {[%clk 0:00:38.6]} 24. b4 {[%clk 0:01:27.1]} 24... axb4 {[%clk 0:00:37.1]}
25. axb4 {[%clk 0:01:28]} 25... h4 {[%clk 0:00:35]} 26. Be3 {[%clk 0:01:23.6]}
26... h3 {[%clk 0:00:32.3]} 27. g3 {[%clk 0:01:22.5]} 27... Bc7 {[%clk
0:00:26.8]} 28. b5 {[%clk 0:01:16.9]} 28... g6 {[%clk 0:00:18.4]} 29. Qd2 {[%clk
0:01:15]} 29... Rd8 {[%clk 0:00:17.7]} 30. Qc2 {[%clk 0:01:11]} 30... Rxd1+
{[%clk 0:00:18.6]} 31. Qxd1 {[%clk 0:01:11.3]} 31... Bb6 {[%clk 0:00:18.9]} 32.
Qd2 {[%clk 0:01:09.9]} 32... Bxc5 {[%clk 0:00:17.9]} 33. Bxc5 {[%clk 0:01:09]}
33... Nd7 {[%clk 0:00:18.2]} 34. Be3 {[%clk 0:01:07.4]} 34... Qd8 {[%clk
0:00:18.3]} 35. Qd6 {[%clk 0:01:05.8]} 35... Qa5 {[%clk 0:00:16.7]} 36. Qd2
{[%clk 0:01:02.4]} 36... Qa1+ {[%clk 0:00:16.2]} 37. Qc1 {[%clk 0:01:01.9]}
37... Qxc1+ {[%clk 0:00:14.9]} 38. Bxc1 {[%clk 0:01:01.3]} 38... cxb5 {[%clk
0:00:15.6]} 39. cxb5 {[%clk 0:01:00.8]} 39... Nb6 {[%clk 0:00:16.3]} 40. Be3
{[%clk 0:00:58.8]} 40... Bc4 {[%clk 0:00:16.4]} 41. Bxb6 {[%clk 0:00:56.9]}
41... Bxe2 {[%clk 0:00:16.1]} 42. Bc7 {[%clk 0:00:53.6]} 42... Bxf3 {[%clk
0:00:15.9]} 43. Bxe5 {[%clk 0:00:51.6]} 43... Bxe4 {[%clk 0:00:16.8]} 44. Kf2
{[%clk 0:00:50.1]} 44... Bg2 {[%clk 0:00:16.8]} 45. Ke3 {[%clk 0:00:47]} 45...
Kf8 {[%clk 0:00:16.7]} 46. Bf6 {[%clk 0:00:44]} 46... Ke8 {[%clk 0:00:16.6]} 47.
Kd4 {[%clk 0:00:42.9]} 47... Kd7 {[%clk 0:00:17.1]} 48. Kc5 {[%clk 0:00:41.4]}
48... Ke6 {[%clk 0:00:16.9]} 49. Bd4 {[%clk 0:00:36.2]} 49... Kf5 {[%clk
0:00:15]} 50. Kb4 {[%clk 0:00:21.7]} 50... Kg4 {[%clk 0:00:15.1]} 51. Kc3 {[%clk
0:00:21.5]} 51... Kf3 {[%clk 0:00:15.3]} 52. Kd2 {[%clk 0:00:21.6]} 52... Bh1
{[%clk 0:00:15.1]} 53. Be5 {[%clk 0:00:18.5]} 53... f5 {[%clk 0:00:14.8]} 54.
Ke1 {[%clk 0:00:17.6]} 54... Bg2 {[%clk 0:00:13.8]} 55. b6 {[%clk 0:00:16.6]}
55... g5 {[%clk 0:00:13.9]} 56. Bd6 {[%clk 0:00:16.4]} 56... g4 {[%clk 0:00:14]}
57. Bf4 {[%clk 0:00:14.8]} 57... Bh1 {[%clk 0:00:13.8]} 58. Be5 {[%clk 0:00:14]}
58... Kg2 {[%clk 0:00:13.7]} 59. Bf4 {[%clk 0:00:13.5]} 59... Kxh2 {[%clk
0:00:12.8]} 60. Kf2 {[%clk 0:00:14]} 60... Bg2 {[%clk 0:00:12.8]} 61. Be5 {[%clk
0:00:14.3]} 61... Bf3 {[%clk 0:00:12.7]} 62. Bf4 {[%clk 0:00:14.7]} 62... Be4
{[%clk 0:00:13.1]} 63. Be5 {[%clk 0:00:14.8]} 63... Kh1 {[%clk 0:00:12.3]} 64.
Bf4 {[%clk 0:00:14.9]} 64... h2 {[%clk 0:00:10]} 65. Be5 {[%clk 0:00:15]} 65...
Bf3 {[%clk 0:00:10.1]} 66. Bf4 {[%clk 0:00:15.2]} 66... Be4 {[%clk 0:00:09.8]}
1/2-1/2